[Event "44th Chess Olympiad Women 2022"]
[Site "Chennai"]
[Date "2022.08.05"]
[Round "7.24"]
[White "Eftovska, Lea"]
[Black "Vidic, Teja"]
[Result "0-1"]
[WhiteElo "1634"]
[BlackElo "2099"]
[Annotator "NA"]
[PlyCount "66"]
[EventDate "2022.??.??"]
[TimeControl "60"]

1. e4 {[%emt 0:00:05]} c5 {[%emt 0:00:13]} 2. Nc3 {[%emt 0:00:07]} d6 {[%emt 0:
00:00]} 3. f4 {[%emt 0:00:06]} g6 {[%emt 0:00:07]} 4. Nf3 {[%emt 0:00:08]} Bg7
{[%emt 0:00:06]} 5. Bb5+ {[%emt 0:00:17]} Bd7 {[%emt 0:00:07]} 6. Bxd7+ {
[%emt 0:00:12]} Qxd7 {[%emt 0:00:06]} 7. d3 {[%emt 0:00:17]} Nc6 {[%emt 0:00:
00]} 8. O-O {[%emt 0:01:42]} e6 {[%emt 0:00:04]} 9. a3 {[%emt 0:03:35]} Nge7 {
[%emt 0:00:32]} 10. Qe1 {[%emt 0:01:02]} O-O {[%emt 0:01:48]} 11. Bd2 {[%emt 0:
00:00]} Nd4 {[%emt 0:08:01]} 12. Nxd4 {[%emt 0:02:14]} cxd4 {[%emt 0:00:05]}
13. Ne2 {[%emt 0:00:21]} Rac8 {[%emt 0:03:49]} 14. Rc1 {[%emt 0:09:52]} Qb5 {
[%emt 0:06:34]} 15. Bb4 {[%emt 0:03:30]} Rfd8 {[%emt 0:12:10]} 16. Rf3 {
[%emt 0:12:44]} Nc6 {[%emt 0:08:43]} 17. c4 {[%emt 0:05:51]} dxc3 {[%emt 0:00:
00]} 18. Bxc3 {[%emt 0:02:27]} Qb6+ {[%emt 0:06:45]} 19. Kh1 {[%emt 0:03:31]}
Nd4 {[%emt 0:05:13]} 20. Nxd4 {[%emt 0:02:47]} Bxd4 {[%emt 0:00:06]} 21. Bxd4 {
[%emt 0:03:56]} Qxd4 {[%emt 0:00:14]} 22. Rc3 {[%emt 0:08:33]} d5 {[%emt 0:00:
00]} 23. exd5 {[%emt 0:10:38]} Qxd5 {[%emt 0:02:52]} 24. Qc1 {[%emt 0:01:12]}
Rxc3 {[%emt 0:01:57]} 25. Qxc3 {[%emt 0:02:34]} h5 {[%emt 0:00:34]} 26. h3 {
[%emt 0:00:36]} b5 {[%emt 0:03:46]} 27. Qa5 {[%emt 0:03:06]} Qd7 {[%emt 0:00:
00]} 28. b3 {[%emt 0:07:27]} Rc8 {[%emt 0:04:09]} 29. Qd2 {[%emt 0:03:41]} Qd4
{[%emt 0:00:30]} 30. Kh2 {[%emt 0:02:39]} Rc3 {[%emt 0:00:46]} 31. Qd1 {
[%emt 0:00:16]} a5 {[%emt 0:01:45]} 32. Kg3 {[%emt 0:00:55]} Kg7 {[%emt 0:00:
00]} 33. Rf2 {[%emt 0:02:17]} Rxd3+ {[%emt 0:00:18]} 0-1

[Event "44th Chess Olympiad Women 2022"]
[Site "Chennai"]
[Date "2022.08.05"]
[Round "7.24"]
[White "Janzelj, Lara"]
[Black "Manova, Ivana"]
[Result "1/2-1/2"]
[WhiteElo "2215"]
[BlackElo "1849"]
[Annotator "NA RC"]
[PlyCount "85"]
[EventDate "2022.??.??"]
[TimeControl "60"]

1. Nf3 {[%emt 0:00:06]} Nf6 {[%emt 0:00:53]} 2. c4 {[%emt 0:00:29]} e6 {
[%emt 0:01:00]} 3. g3 {[%emt 0:00:20]} b6 {[%emt 0:01:07]} 4. Bg2 {[%emt 0:00:
00]} Bb7 {[%emt 0:00:07]} 5. O-O {[%emt 0:00:40]} Be7 {[%emt 0:00:25]} 6. b3 {
[%emt 0:04:00]} O-O {[%emt 0:02:02]} 7. Bb2 {[%emt 0:00:14]} d6 {[%emt 0:00:48]
} 8. Qc2 {[%emt 0:03:58]} Nbd7 {[%emt 0:02:29]} 9. Nc3 {[%emt 0:00:20]} a6 {
[%emt 0:07:31]} 10. d4 {[%emt 0:02:34]} c5 {[%emt 0:01:42]} 11. Rad1 {[%emt 0:
00:00]} Qc7 {[%emt 0:04:33]} 12. e4 {[%emt 0:03:48]} Rfe8 {[%emt 0:09:24]} 13.
d5 {[%emt 0:05:08]} Bf8 {[%emt 0:07:37]} 14. dxe6 {[%emt 0:06:28]} Rxe6 {
[%emt 0:01:39]} 15. Ng5 {[%emt 0:05:51]} Ree8 {[%emt 0:04:05]} 16. Nh3 {
[%emt 0:06:10]} Rad8 {[%emt 0:13:48]} 17. Nf4 {[%emt 0:01:41]} Ne5 {[%emt 0:00:
00]} 18. a3 {[%emt 0:08:25]} g6 {[%emt 0:07:55]} 19. Nfe2 {[%emt 0:23:27]} Bc6
{[%emt 0:05:56]} 20. h3 {[%emt 0:03:49]} b5 {[%emt 0:04:22]} 21. f4 {[%emt 0:
00:00]} Ned7 {[%emt 0:00:20]} 22. Nd5 {[%emt 0:00:32]} Bxd5 {[%emt 0:00:33]}
23. cxd5 {[%emt 0:00:22]} Bg7 {[%emt 0:02:25]} 24. Nd4 {[%emt 0:04:22]} Nb8 {
[%emt 0:06:32]} 25. Rfe1 {[%emt 0:00:14]} Rc8 {[%emt 0:00:51]} 26. Nf3 {
[%emt 0:00:59]} c4 {[%emt 0:04:50]} 27. e5 {[%emt 0:03:48]} Nfd7 {[%emt 0:00:
00]} 28. exd6 {[%emt 0:02:54]} Rxe1+ {[%emt 0:02:55]} 29. Rxe1 {[%emt 0:00:09]}
Qb6+ {[%emt 0:01:49]} 30. Kh2 {[%emt 0:00:03]} Bxb2 {[%emt 0:00:22]} 31. Qxb2 {
[%emt 0:00:06]} c3 {[%emt 0:00:15]} 32. Qc2 {[%emt 0:00:50]} Qxd6 {[%emt 0:00:
00]} 33. Ne5 {[%emt 0:01:09]} Nb6 {[%emt 0:02:08]} 34. b4 {[%emt 0:03:56]} Na4
{[%emt 0:00:32]} 35. Re2 {[%emt 0:00:57]} Nd7 {[%emt 0:00:31]} 36. Nc6 {
[%emt 0:00:13]} Kg7 {[%emt 0:00:26]} 37. Ne7 {[%emt 0:02:52]} Rc4 {[%emt 0:00:
00]} 38. Nc6 {[%emt 0:00:45]} Nf6 {[%emt 0:00:26]} 39. Re5 {[%emt 0:00:29]} Nb6
{[%emt 0:00:36]} 40. Bf1 {[%emt 0:01:04]} Nfxd5 {[%emt 0:00:31]} 41. Bxc4 {
[%emt 0:30:49]} Nxc4 {[%emt 0:01:18]} 42. Rxd5 {[%emt 0:00:00]} Qxd5 {[%emt 0:
00:00]} 43. Qxc3+ {[%emt 0:00:00]} 1/2-1/2

[Event "44th Chess Olympiad Women 2022"]
[Site "Chennai"]
[Date "2022.08.05"]
[Round "7.24"]
[White "Rozman, Monika"]
[Black "Zhezhovska, Monika"]
[Result "1-0"]
[WhiteElo "2104"]
[BlackElo "1588"]
[Annotator "NA RC"]
[PlyCount "43"]
[EventDate "2022.??.??"]
[TimeControl "60"]

1. e4 {[%emt 0:00:03]} c5 {[%emt 0:00:09]} 2. Nf3 {[%emt 0:00:04]} d6 {[%emt 0:
00:00]} 3. Bb5+ {[%emt 0:00:04]} Bd7 {[%emt 0:00:10]} 4. Bxd7+ {[%emt 0:00:06]}
Qxd7 {[%emt 0:00:19]} 5. O-O {[%emt 0:00:05]} Nf6 {[%emt 0:00:25]} 6. Re1 {
[%emt 0:00:05]} Nc6 {[%emt 0:00:44]} 7. c3 {[%emt 0:00:09]} g6 {[%emt 0:00:32]}
8. d4 {[%emt 0:00:27]} cxd4 {[%emt 0:01:13]} 9. cxd4 {[%emt 0:01:27]} Bg7 {
[%emt 0:00:50]} 10. Nc3 {[%emt 0:02:03]} O-O {[%emt 0:01:55]} 11. Bg5 {[%emt 0:
00:00]} Rfe8 {[%emt 0:11:09]} 12. Qd2 {[%emt 0:15:44]} Rac8 {[%emt 0:10:42]}
13. Rac1 {[%emt 0:00:33]} Qd8 {[%emt 0:17:56]} 14. Bh6 {[%emt 0:06:32]} Bh8 {
[%emt 0:07:04]} 15. h3 {[%emt 0:00:04]} Qa5 {[%emt 0:04:30]} 16. Red1 {[%emt 0:
00:00]} b5 {[%emt 0:04:43]} 17. e5 {[%emt 0:04:20]} b4 {[%emt 0:06:31]} 18.
exf6 {[%emt 0:01:44]} bxc3 {[%emt 0:00:11]} 19. Rxc3 {[%emt 0:02:26]} exf6 {
[%emt 0:04:16]} 20. d5 {[%emt 0:04:37]} Nb4 {[%emt 0:12:47]} 21. Rxc8 {[%emt 0:
00:00]} Rxc8 {[%emt 0:00:32]} 22. a3 {[%emt 0:00:09]} 1-0

[Event "44th Chess Olympiad Women 2022"]
[Site "Chennai"]
[Date "2022.08.05"]
[Round "7.24"]
[White "Stojkovska, Monika"]
[Black "Urh, Zala"]
[Result "0-1"]
[WhiteElo "2091"]
[BlackElo "2321"]
[Annotator "TA"]
[PlyCount "58"]
[EventDate "2022.??.??"]
[TimeControl "60"]

{[%evp 14,58,34,27,26,23,33,-12,6,-50,-42,-109,-100,-93,-82,-89,-64,-88,-49,
-385,-366,-513,-502,-494,-510,-624,-505,-481,-470,-663,-662,-645,-629,-668,
-666,-622,-641,-685,-670,-754,-730,-870,-893,-29994,-29995,-29997,-468]} 1. d4
{[%emt 0:00:10]} Nf6 {[%emt 0:00:04]} 2. c4 {[%emt 0:00:04]} g6 {[%emt 0:00:04]
} 3. Nc3 {[%emt 0:00:08]} d5 {[%emt 0:00:07]} 4. cxd5 {[%emt 0:00:23]} Nxd5 {
[%emt 0:00:07]} 5. Qb3 {[%emt 0:00:19]} Nb6 {[%emt 0:09:08]} 6. Nf3 {[%emt 0:
00:00]} Bg7 {[%emt 0:00:21]} 7. Bf4 {[%emt 0:00:17]} O-O {[%emt 0:03:35]} 8. e3
{[%emt 0:01:05]} Be6 {[%emt 0:12:53] D90: Grünfeld: 4 Nf3 Bg7 sidelines.} 9.
Qa3 {[%emt 0:03:42]} a5 {[%emt 0:06:38] [#]} 10. Qc5 $146 {[%emt 0:10:06]} ({
Predecessor:} 10. Be2 Nc6 11. Rc1 Nb4 12. b3 Bg4 13. O-O Bxf3 14. Bxf3 Nd3 15.
Bxb7 Rb8 16. Be4 Nxf4 17. exf4 Qxd4 18. Qxa5 {½-½ (83) Meskovs,N (2541)
-Pultinevicius,P (2485) Riga 2019}) 10... c6 {[%emt 0:05:01] The position is
equal.} 11. Bxb8 {[%emt 0:16:35]} (11. Be2 $11) 11... Nd7 $1 $15 {[%emt 0:00:
00]} 12. Bc7 {[%emt 0:02:27]} Qxc7 $17 {[%emt 0:02:03]} 13. Qxe7 {[%emt 0:00:
00]} Rfe8 {[%emt 0:00:38]} 14. Qh4 {[%emt 0:19:17]} Qb6 $1 $36 {[%emt 0:04:29]
Black has strong compensation. Black has good play.} 15. O-O-O {[%emt 0:09:36]}
h6 {[%emt 0:02:55] Against Ng5} 16. Kb1 $2 {[%emt 0:09:22] [#]} (16. Bd3 $15)
16... a4 $1 $19 {[%emt 0:01:36][%cal Ya5a4,Ya4a3]} 17. Nd2 {[%emt 0:01:23]} (
17. a3 {was called for.} Bf8 18. Kc1) 17... a3 {[%emt 0:03:07][%csl Ga3][%cal
Rb6b2]} 18. b3 {[%emt 0:00:33]} Qb4 {[%emt 0:02:07]} 19. Rc1 {[%emt 0:03:08]}
c5 {[%emt 0:03:00][%cal Yc6c5,Yc5d4,Yd4c3,Yc3c2]} 20. Bc4 {[%emt 0:02:25]} g5 {
[%emt 0:12:02]} 21. Qg3 {[%emt 0:02:50] [#]} (21. Qh5 $142 cxd4 22. exd4) 21...
Bf5+ $1 {[%emt 0:02:17]} 22. e4 {[%emt 0:00:34]} cxd4 {[%emt 0:02:13]} 23. exf5
{[%emt 0:02:39] And now Nce4 would win.} dxc3 {[%emt 0:00:15]} 24. Nf3 {
[%emt 0:01:14]} Rac8 {[%emt 0:00:00]} 25. Qg4 {[%emt 0:08:04][%cal Yc4f7]
Strongly threatening Bxf7+!} Kf8 {[%emt 0:00:20] Hoping for ...b5.} 26. Rhe1 {
[%emt 0:03:44]} Rxe1 {[%emt 0:00:00]} 27. Rxe1 {[%emt 0:01:19]} c2+ {[%emt 0:
00:17]} 28. Kc1 {[%emt 0:00:43]} Qc3 {[%emt 0:01:09]} 29. f6 {[%emt 0:00:16]}
Qb2+ {[%emt 0:00:10] White got outplayed after the opening. Weighted Error
Value: White=0.92/Black=0.08 (flawless)} 0-1

[Event "44th Chess Olympiad Women 2022"]
[Site "Chennai"]
[Date "2022.08.05"]
[Round "7.25"]
[White "Barbier, Astrid"]
[Black "Pachon, Adriana"]
[Result "1-0"]
[WhiteElo "1879"]
[BlackElo "2007"]
[Annotator "NA RC"]
[PlyCount "85"]
[EventDate "2022.??.??"]
[TimeControl "60"]

1. e4 {[%emt 0:00:03]} e5 {[%emt 0:00:12]} 2. Nf3 {[%emt 0:00:06]} Nc6 {
[%emt 0:00:09]} 3. Bb5 {[%emt 0:00:07]} a6 {[%emt 0:00:14]} 4. Ba4 {[%emt 0:00:
00]} Nf6 {[%emt 0:00:07]} 5. d3 {[%emt 0:00:07]} b5 {[%emt 0:00:22]} 6. Bb3 {
[%emt 0:00:06]} Bc5 {[%emt 0:00:28]} 7. O-O {[%emt 0:02:38]} d6 {[%emt 0:00:37]
} 8. c3 {[%emt 0:00:15]} Bb6 {[%emt 0:01:02]} 9. Be3 {[%emt 0:03:42]} Rb8 {
[%emt 0:05:38]} 10. Nbd2 {[%emt 0:04:22]} Bg4 {[%emt 0:03:42]} 11. h3 {[%emt 0:
00:00]} Bh5 {[%emt 0:01:10]} 12. a4 {[%emt 0:03:22]} O-O {[%emt 0:03:39]} 13.
Bxb6 {[%emt 0:03:12]} Rxb6 {[%emt 0:00:47]} 14. a5 {[%emt 0:00:12]} Rb7 {
[%emt 0:03:44]} 15. Qc2 {[%emt 0:02:12]} Qe7 {[%emt 0:11:03]} 16. Rfe1 {
[%emt 0:02:08]} Bg6 {[%emt 0:03:29]} 17. Nh4 {[%emt 0:11:36]} Na7 {[%emt 0:00:
00]} 18. Nxg6 {[%emt 0:06:13]} hxg6 {[%emt 0:00:07]} 19. Nf1 {[%emt 0:00:06]}
c5 {[%emt 0:03:04]} 20. Ne3 {[%emt 0:00:26]} Rc8 {[%emt 0:00:57]} 21. Nd5 {
[%emt 0:03:16]} Nxd5 {[%emt 0:00:32]} 22. Bxd5 {[%emt 0:00:04]} Nc6 {[%emt 0:
00:00]} 23. Qe2 {[%emt 0:03:03]} Rbc7 {[%emt 0:02:21]} 24. Qg4 {[%emt 0:01:20]}
Kh7 {[%emt 0:08:18]} 25. Re3 {[%emt 0:03:16]} Nd8 {[%emt 0:00:41]} 26. Rf1 {
[%emt 0:03:13]} Ne6 {[%emt 0:05:02]} 27. g3 {[%emt 0:01:41]} c4 {[%emt 0:02:30]
} 28. f4 {[%emt 0:05:20]} exf4 {[%emt 0:03:30]} 29. gxf4 {[%emt 0:01:13]} cxd3
{[%emt 0:00:09]} 30. f5 {[%emt 0:06:29]} gxf5 {[%emt 0:16:28]} 31. exf5 {
[%emt 0:04:25]} Qg5 {[%emt 0:00:22]} 32. Qxg5 {[%emt 0:01:19]} Nxg5 {[%emt 0:
00:00]} 33. h4 {[%emt 0:00:05]} Rc5 {[%emt 0:03:39]} 34. Bb3 {[%emt 0:05:46]}
Re5 {[%emt 0:02:21]} 35. Rxe5 {[%emt 0:02:39]} Nh3+ {[%emt 0:00:14]} 36. Kg2 {
[%emt 0:03:25]} dxe5 {[%emt 0:01:26]} 37. Kxh3 {[%emt 0:00:06]} e4 {[%emt 0:00:
00]} 38. Re1 {[%emt 0:03:56]} Re8 {[%emt 0:00:20]} 39. Re3 {[%emt 0:00:39]} f6
{[%emt 0:05:02]} 40. Kg3 {[%emt 0:01:14]} g6 {[%emt 0:00:26]} 41. Kf4 {[%emt 0:
00:00]} gxf5 {[%emt 0:30:30]} 42. Kxf5 {[%emt 0:02:04]} Re5+ {[%emt 0:00:00]}
43. Kxf6 {[%emt 0:00:00]} 1-0

[Event "44th Chess Olympiad Women 2022"]
[Site "Chennai"]
[Date "2022.08.05"]
[Round "7.25"]
[White "Castrillon Gomez, Melissa"]
[Black "Goossens, Hanne"]
[Result "0-1"]
[WhiteElo "2230"]
[BlackElo "2159"]
[Annotator "ChessBase"]
[PlyCount "156"]
[EventDate "2022.??.??"]
[TimeControl "60"]

1. Nf3 {[%emt 0:00:10]} Nf6 {[%emt 0:00:51]} 2. c4 {[%emt 0:00:20]} e6 {
[%emt 0:01:27]} 3. g3 {[%emt 0:01:47]} d5 {[%emt 0:02:07]} 4. Bg2 {[%emt 0:00:
00]} c5 {[%emt 0:05:45]} 5. O-O {[%emt 0:02:29]} Nc6 {[%emt 0:02:16]} 6. cxd5 {
[%emt 0:00:18]} Nxd5 {[%emt 0:05:35]} 7. d4 {[%emt 0:02:58]} cxd4 {[%emt 0:00:
00]} 8. Nxd4 {[%emt 0:00:19]} Ndb4 {[%emt 0:03:15]} 9. Nxc6 {[%emt 0:06:57]}
Qxd1 {[%emt 0:02:09]} 10. Rxd1 {[%emt 0:00:06]} Nxc6 {[%emt 0:00:09]} 11. Nc3 {
[%emt 0:02:22]} Be7 {[%emt 0:04:29]} 12. Nb5 {[%emt 0:06:40]} O-O {[%emt 0:00:
00]} 13. Be3 {[%emt 0:01:07]} a5 {[%emt 0:07:41]} 14. Rac1 {[%emt 0:06:15]} e5
{[%emt 0:03:42]} 15. Bxc6 {[%emt 0:06:48]} bxc6 {[%emt 0:00:06]} 16. Na7 {
[%emt 0:08:47]} Be6 {[%emt 0:04:29]} 17. Nxc6 {[%emt 0:00:47]} Rfe8 {[%emt 0:
00:00]} 18. b3 {[%emt 0:07:15]} Ba3 {[%emt 0:04:23]} 19. Rc2 {[%emt 0:03:44]}
Rec8 {[%emt 0:04:05]} 20. Bc1 {[%emt 0:02:39]} Bf8 {[%emt 0:02:47]} 21. Bb2 {
[%emt 0:01:47]} f6 {[%emt 0:00:11]} 22. Rdc1 {[%emt 0:03:11]} Kf7 {[%emt 0:00:
00]} 23. e4 {[%emt 0:03:25]} g5 {[%emt 0:02:22]} 24. Rc3 {[%emt 0:02:18]} g4 {
[%emt 0:02:45]} 25. f4 {[%emt 0:03:49]} gxf3 {[%emt 0:00:58]} 26. Rxf3 {
[%emt 0:00:23]} Kg7 {[%emt 0:01:39]} 27. Rfc3 {[%emt 0:04:37]} Bb4 {[%emt 0:00:
00]} 28. Rd3 {[%emt 0:07:02]} Bf8 {[%emt 0:00:49]} 29. Kg2 {[%emt 0:03:55]} Kg6
{[%emt 0:00:38]} 30. a3 {[%emt 0:01:14]} Ra6 {[%emt 0:01:26]} 31. Rdc3 {
[%emt 0:02:04]} Rca8 {[%emt 0:00:18]} 32. Rf1 {[%emt 0:04:07]} Bd7 {[%emt 0:00:
00]} 33. Rfc1 {[%emt 0:01:36]} Rb6 {[%emt 0:00:11]} 34. R1c2 {[%emt 0:01:27]}
Kf7 {[%emt 0:00:35]} 35. h4 {[%emt 0:02:25]} Ke8 {[%emt 0:00:16]} 36. Bc1 {
[%emt 0:00:24]} Raa6 {[%emt 0:00:35]} 37. Nxa5 {[%emt 0:00:46]} Rxa5 {[%emt 0:
00:00]} 38. b4 {[%emt 0:00:04]} Ra8 {[%emt 0:00:36]} 39. Kf3 {[%emt 0:00:23]}
h5 {[%emt 0:00:34]} 40. Kf2 {[%emt 0:00:42]} Rba6 {[%emt 0:01:19]} 41. Bb2 {
[%emt 0:30:26]} Bd6 {[%emt 0:31:38]} 42. Rd3 {[%emt 0:00:00]} Ke7 {[%emt 0:00:
00]} 43. Rdc3 {[%emt 0:00:00]} Rb8 {[%emt 0:00:00]} 44. Rc4 {[%emt 0:00:00]}
Raa8 {[%emt 0:00:00]} 45. Ke3 {[%emt 0:00:00]} Rc8 {[%emt 0:00:00]} 46. Rxc8 {
[%emt 0:00:00]} Rxc8 {[%emt 0:00:00]} 47. Rxc8 {[%emt 0:00:00]} Bxc8 {[%emt 0:
00:00]} 48. b5 {[%emt 0:00:00]} Kd7 {[%emt 0:00:00]} 49. a4 {[%emt 0:00:00]}
Bb4 {[%emt 0:00:00]} 50. Kd3 {[%emt 0:00:00]} Bb7 {[%emt 0:00:00]} 51. Bc1 {
[%emt 0:00:00]} Ke6 {[%emt 0:00:00]} 52. Be3 {[%emt 0:00:00]} Ba5 {[%emt 0:00:
00]} 53. Bf2 {[%emt 0:00:00]} Kd6 {[%emt 0:00:00]} 54. g4 {[%emt 0:00:00]} hxg4
{[%emt 0:00:00]} 55. h5 {[%emt 0:00:00]} Ke6 {[%emt 0:00:00]} 56. h6 {[%emt 0:
00:00]} Kf7 {[%emt 0:00:00]} 57. Bh4 {[%emt 0:00:00]} Bd8 {[%emt 0:00:00]} 58.
a5 {[%emt 0:00:00]} Bxa5 {[%emt 0:00:00]} 59. h7 {[%emt 0:00:00]} Kg7 {[%emt 0:
00:00]} 60. Bxf6+ {[%emt 0:00:00]} Kxh7 {[%emt 0:00:00]} 61. Bxe5 {[%emt 0:00:
00]} Bb6 {[%emt 0:00:00]} 62. Bg3 {[%emt 0:00:00]} Kg6 {[%emt 0:00:00]} 63. Bf4
{[%emt 0:00:12]} Kh5 {[%emt 0:00:00]} 64. e5 {[%emt 0:04:40]} Kg6 {[%emt 0:00:
00]} 65. Bh2 {[%emt 0:00:27]} Kf5 {[%emt 0:00:23]} 66. Bg3 {[%emt 0:00:04]} Bg2
{[%emt 0:00:57]} 67. Kc4 {[%emt 0:01:15]} Ke6 {[%emt 0:00:41]} 68. Kb4 {
[%emt 0:01:27]} Bf1 {[%emt 0:00:38]} 69. Bf4 {[%emt 0:01:26]} Kd5 {[%emt 0:00:
00]} 70. Ka4 {[%emt 0:00:41]} Bd3 {[%emt 0:01:48]} 71. Bg3 {[%emt 0:00:56]} Bc7
{[%emt 0:02:04]} 72. Bf2 {[%emt 0:00:36]} Bxe5 {[%emt 0:01:13]} 73. Ka5 {
[%emt 0:00:08]} Bc3+ {[%emt 0:00:42]} 74. Ka6 {[%emt 0:00:15]} Bd4 {[%emt 0:00:
00]} 75. Bg3 {[%emt 0:00:13]} Kc5 {[%emt 0:00:19]} 76. Ka5 {[%emt 0:01:09]}
Bc3+ {[%emt 0:00:24]} 77. Ka4 {[%emt 0:00:09]} Bxb5+ {[%emt 0:00:06]} 78. Kb3 {
[%emt 0:00:05]} Ba5 {[%emt 0:00:15]} 0-1

[Event "44th Chess Olympiad Women 2022"]
[Site "Chennai"]
[Date "2022.08.05"]
[Round "7.25"]
[White "Rodriguez Rueda, Paula Andrea"]
[Black "Barbier, Wiebke"]
[Result "1-0"]
[WhiteElo "2237"]
[BlackElo "1970"]
[Annotator "NA RC"]
[PlyCount "81"]
[EventDate "2022.??.??"]
[TimeControl "60"]

1. d4 {[%emt 0:00:03]} d5 {[%emt 0:00:02]} 2. c4 {[%emt 0:00:19]} e6 {[%emt 0:
00:00]} 3. Nf3 {[%emt 0:00:14]} a6 {[%emt 0:00:03]} 4. Nbd2 {[%emt 0:00:34]}
Nf6 {[%emt 0:01:00]} 5. g3 {[%emt 0:00:18]} dxc4 {[%emt 0:08:31]} 6. Nxc4 {
[%emt 0:00:07]} b5 {[%emt 0:00:11]} 7. Nce5 {[%emt 0:00:05]} Bb7 {[%emt 0:00:
00]} 8. Bg2 {[%emt 0:03:20]} Be7 {[%emt 0:03:24]} 9. Nxf7 {[%emt 0:00:00]} Kxf7
{[%emt 0:15:57]} 10. Ng5+ {[%emt 0:00:00]} Ke8 {[%emt 0:03:37]} 11. Bxb7 {
[%emt 0:00:00]} Ra7 {[%emt 0:01:57]} 12. Bf3 {[%emt 0:00:01]} Bb4+ {[%emt 0:00:
00]} 13. Kf1 {[%emt 0:02:41]} Qe7 {[%emt 0:03:30]} 14. Qb3 {[%emt 0:00:32]} Kd7
{[%emt 0:06:44]} 15. Nxe6 {[%emt 0:03:34]} Qxe6 {[%emt 0:04:07]} 16. Qxb4 {
[%emt 0:00:13]} Qd6 {[%emt 0:03:52]} 17. Qb3 {[%emt 0:07:28]} Re8 {[%emt 0:00:
00]} 18. Bf4 {[%emt 0:00:17]} Qe6 {[%emt 0:04:09]} 19. Qxe6+ {[%emt 0:02:33]}
Rxe6 {[%emt 0:07:13]} 20. d5 {[%emt 0:00:09]} Re8 {[%emt 0:00:32]} 21. Rc1 {
[%emt 0:01:43]} Ne4 {[%emt 0:03:31]} 22. Kg2 {[%emt 0:02:08]} a5 {[%emt 0:00:
00]} 23. Bh5 {[%emt 0:03:39]} Rf8 {[%emt 0:00:48]} 24. Bg4+ {[%emt 0:00:32]}
Kd8 {[%emt 0:00:45]} 25. f3 {[%emt 0:04:52]} Nf6 {[%emt 0:01:45]} 26. Be6 {
[%emt 0:00:23]} Na6 {[%emt 0:05:45]} 27. Rhd1 {[%emt 0:03:40]} Ke7 {[%emt 0:00:
00]} 28. Rc6 {[%emt 0:02:18]} Rd8 {[%emt 0:00:00]} 29. e4 {[%emt 0:01:08]} h6 {
[%emt 0:00:00]} 30. Rdc1 {[%emt 0:01:24]} Ne8 {[%emt 0:01:14]} 31. a3 {[%emt 0:
00:00]} Nd6 {[%emt 0:03:06]} 32. Be3 {[%emt 0:01:37]} Raa8 {[%emt 0:00:43]} 33.
Rxc7+ {[%emt 0:01:09]} Nxc7 {[%emt 0:01:36]} 34. Rxc7+ {[%emt 0:00:06]} Ke8 {
[%emt 0:03:07]} 35. e5 {[%emt 0:01:40]} Nc4 {[%emt 0:01:11]} 36. Bf7+ {[%emt 0:
00:00]} Kf8 {[%emt 0:00:09]} 37. Bc5+ {[%emt 0:00:05]} Nd6 {[%emt 0:01:10]} 38.
Bxd6+ {[%emt 0:00:26]} Rxd6 {[%emt 0:00:13]} 39. exd6 {[%emt 0:00:05]} Rd8 {
[%emt 0:00:05]} 40. Be6 {[%emt 0:00:40]} Rxd6 {[%emt 0:03:13]} 41. Rf7+ {
[%emt 0:33:55]} 1-0

[Event "44th Chess Olympiad Women 2022"]
[Site "Chennai"]
[Date "2022.08.05"]
[Round "7.25"]
[White "Vanduyfhuys, Daria"]
[Black "Chirivi C, Jenny Astrid"]
[Result "0-1"]
[WhiteElo "2094"]
[BlackElo "2157"]
[Annotator "NA RC"]
[PlyCount "120"]
[EventDate "2022.??.??"]
[TimeControl "60"]

1. d4 {[%emt 0:00:05]} Nf6 {[%emt 0:00:20]} 2. c4 {[%emt 0:00:08]} e6 {[%emt 0:
00:00]} 3. Nf3 {[%emt 0:00:08]} Bb4+ {[%emt 0:00:22]} 4. Bd2 {[%emt 0:00:07]}
Qe7 {[%emt 0:00:25]} 5. Nc3 {[%emt 0:00:43]} O-O {[%emt 0:04:12]} 6. g3 {
[%emt 0:00:09]} Bxc3 {[%emt 0:04:08]} 7. Bxc3 {[%emt 0:00:12]} Ne4 {[%emt 0:00:
00]} 8. Rc1 {[%emt 0:00:28]} d6 {[%emt 0:01:07]} 9. Bg2 {[%emt 0:00:23]} a5 {
[%emt 0:13:33]} 10. O-O {[%emt 0:00:57]} f5 {[%emt 0:02:22]} 11. Be1 {[%emt 0:
00:00]} Nd7 {[%emt 0:04:10]} 12. Nd2 {[%emt 0:01:55]} Ndf6 {[%emt 0:05:20]} 13.
Nxe4 {[%emt 0:03:43]} Nxe4 {[%emt 0:00:53]} 14. Qd3 {[%emt 0:02:38]} e5 {
[%emt 0:02:35]} 15. f3 {[%emt 0:11:06]} Nf6 {[%emt 0:02:38]} 16. Bc3 {[%emt 0:
00:00]} exd4 {[%emt 0:10:34]} 17. Bxd4 {[%emt 0:00:24]} Be6 {[%emt 0:07:13]}
18. Rfe1 {[%emt 0:04:58]} Rae8 {[%emt 0:12:02]} 19. Qc3 {[%emt 0:06:32]} b6 {
[%emt 0:00:47]} 20. b3 {[%emt 0:01:03]} Bd7 {[%emt 0:02:50]} 21. Bh3 {[%emt 0:
00:00]} f4 {[%emt 0:06:59]} 22. Bg2 {[%emt 0:04:18]} fxg3 {[%emt 0:09:40]} 23.
hxg3 {[%emt 0:00:09]} Nh5 {[%emt 0:00:12]} 24. f4 {[%emt 0:02:01]} Kh8 {
[%emt 0:05:15]} 25. e4 {[%emt 0:04:49]} Qf7 {[%emt 0:01:25]} 26. Bf2 {[%emt 0:
00:00]} Qg6 {[%emt 0:01:14]} 27. Re3 {[%emt 0:03:32]} Nf6 {[%emt 0:00:41]} 28.
Rce1 {[%emt 0:06:25]} Ng4 {[%emt 0:00:21]} 29. R3e2 {[%emt 0:01:50]} Qh6 {
[%emt 0:01:03]} 30. Qd3 {[%emt 0:04:17]} Nxf2 {[%emt 0:01:53]} 31. Rxf2 {
[%emt 0:00:19]} Qg6 {[%emt 0:00:23]} 32. Rd2 {[%emt 0:02:09]} Re7 {[%emt 0:00:
00]} 33. Re3 {[%emt 0:02:09]} Bg4 {[%emt 0:00:29]} 34. Qf1 {[%emt 0:02:07]}
Rfe8 {[%emt 0:00:13]} 35. Qf2 {[%emt 0:05:30]} h6 {[%emt 0:00:39]} 36. a3 {
[%emt 0:01:27]} Qf6 {[%emt 0:00:29]} 37. Qe1 {[%emt 0:01:21]} Qg6 {[%emt 0:00:
00]} 38. Kf2 {[%emt 0:03:46]} Qf7 {[%emt 0:00:20]} 39. Kg1 {[%emt 0:01:19]} a4
{[%emt 0:00:07]} 40. bxa4 {[%emt 0:01:51]} Qxc4 {[%emt 0:00:08]} 41. a5 {
[%emt 0:05:30]} bxa5 {[%emt 0:04:52]} 42. Rb2 {[%emt 0:02:18]} d5 {[%emt 0:00:
00]} 43. Kh2 {[%emt 0:07:37]} d4 {[%emt 0:13:59]} 44. Reb3 {[%emt 0:00:07]} d3
{[%emt 0:01:33]} 45. e5 {[%emt 0:03:01]} Bf5 {[%emt 0:01:28]} 46. Qxa5 {
[%emt 0:01:08]} Qc1 {[%emt 0:00:47]} 47. Rb7 {[%emt 0:02:25]} Kh7 {[%emt 0:00:
00]} 48. Rf2 {[%emt 0:04:17]} Rd8 {[%emt 0:01:38]} 49. Rd2 {[%emt 0:00:46]} h5
{[%emt 0:00:41]} 50. Bf3 {[%emt 0:00:52]} h4 {[%emt 0:00:49]} 51. gxh4 {
[%emt 0:00:39]} Qe1 {[%emt 0:00:23]} 52. Rbb2 {[%emt 0:02:18]} Qxh4+ {[%emt 0:
00:00]} 53. Kg1 {[%emt 0:01:50]} Qg3+ {[%emt 0:00:16]} 54. Bg2 {[%emt 0:00:07]}
Qxf4 {[%emt 0:00:53]} 55. Bd5 {[%emt 0:02:39]} Qd4+ {[%emt 0:00:22]} 56. Kf1 {
[%emt 0:00:18]} Qxd5 {[%emt 0:00:30]} 57. Rh2+ {[%emt 0:00:08]} Kg8 {[%emt 0:
00:00]} 58. Qb4 {[%emt 0:00:56]} d2 {[%emt 0:01:10]} 59. Rbxd2 {[%emt 0:00:20]}
Qf3+ {[%emt 0:00:23]} 60. Rhf2 {[%emt 0:00:45]} Qh1+ {[%emt 0:00:12]} 0-1